[Event "Mitropa Online Cup Women 2021"]
[Site "Hybrid"]
[Date "2021.05.04"]
[Round "7.4"]
[White "Terbe, Julianna"]
[Black "Hakimifard, Ghazal"]
[Result "1/2-1/2"]
[ECO "A47"]
[WhiteElo "2267"]
[BlackElo "2265"]
[Annotator "NA"]
[PlyCount "161"]
[EventDate "2021.05.04"]
[EventType "team-tourn"]
[EventCountry "NET"]
[SourceTitle "playchess.com"]
[Source "ChessBase"]
[SourceQuality "1"]
[WhiteTeam "Hungary"]
[BlackTeam "Switzerland"]
[WhiteTeamCountry "HUN"]
[BlackTeamCountry "SUI"]
[TimeControl "40/5400+30:1800+30"]

1. d4 {[%emt 0:00:00]} Nf6 {[%emt 0:00:05]} 2. Nf3 {[%emt 0:00:06]} e6 {[%emt 0:00:10]} 3. Bf4 {[%emt 0:00:08]} b6 {[%emt 0:00:12]} 4. e3 {[%emt 0:00:07]} Bb7 {[%emt 0:00:06]} 5. h3 {[%emt 0:00:05]} Be7 {[%emt 0:00:12]} 6. Nbd2 {[%emt 0:00:05]} c5 {[%emt 0:00:06]} 7. Bd3 {[%emt 0:00:15]} O-O {[%emt 0:01:20]} 8. O-O {[%emt 0:00:07]} d6 {[%emt 0:00:15]} 9. Bh2 {[%emt 0:03:06]} cxd4 {[%emt 0:01:46]} 10. exd4 {[%emt 0:00:06]} Nbd7 {[%emt 0:02:23]} 11. a4 {[%emt 0:00:42]} a6 {[%emt 0:01:25]} 12. Re1 {[%emt 0:00:08]} Re8 {[%emt 0:00:56]} 13. c3 {[%emt 0:00:07]} Qc7 {[%emt 0:02:13]} 14. Qe2 {[%emt 0:01:34]} Nf8 {[%emt 0:00:33]} 15. Nc4 {[%emt 0:02:06]} Nd5 {[%emt 0:03:30]} 16. Ne3 {[%emt 0:01:08]} Qc6 {[%emt 0:06:43]} 17. Nd2 {[%emt 0:20:48]} Nf6 {[%emt 0:05:09]} 18. Ndc4 {[%emt 0:05:49]} Ng6 {[%emt 0:04:36]} 19. a5 {[%emt 0:04:09]} b5 {[%emt 0:04:21]} 20. Nb6 {[%emt 0:01:30]} Ra7 {[%emt 0:02:32]} 21. Rec1 {[%emt 0:08:20]} e5 {[%emt 0:14:42]} 22. c4 {[%emt 0:11:59]} b4 {[%emt 0:00:47]} 23. d5 {[%emt 0:04:28]} Qc5 {[%emt 0:03:47]} 24. Qe1 {[%emt 0:01:17]} Bd8 {[%emt 0:04:37]} 25. Na4 {[%emt 0:03:47]} Qxa5 {[%emt 0:06:43]} 26. c5 {[%emt 0:00:16]} b3 {[%emt 0:01:00]} 27. Qxa5 {[%emt 0:08:50]} Bxa5 {[%emt 0:00:05]} 28. Nc4 {[%emt 0:00:05]} Bc7 {[%emt 0:02:59]} 29. cxd6 {[%emt 0:06:07]} Bb8 {[%emt 0:01:38]} 30. Nab6 {[%emt 0:01:57]} Nxd5 {[%emt 0:03:10]} 31. d7 {[%emt 0:06:41]} Rd8 {[%emt 0:00:21]} 32. Bxg6 {[%emt 0:00:14]} hxg6 {[%emt 0:01:03]} 33. Nxd5 {[%emt 0:00:05]} Bxd5 {[%emt 0:00:28]} 34. Nb6 {[%emt 0:00:05]} Be6 {[%emt 0:00:58]} 35. Rc8 {[%emt 0:04:55]} Bc7 {[%emt 0:06:40]} 36. Na8 {[%emt 0:01:13]} Rxa8 {[%emt 0:05:01]} 37. Rxc7 {[%emt 0:00:07]} f6 {[%emt 0:06:12]} 38. f4 {[%emt 0:02:17]} e4 {[%emt 0:01:47]} 39. Rd1 {[%emt 0:00:24]} Kf7 {[%emt 0:00:13]} 40. Bg3 {[%emt 0:00:00]} Ke7 {[%emt 0:00:00]} 41. Rb7 {[%emt 0:09:50]} a5 {[%emt 0:03:29]} 42. Bf2 {[%emt 0:02:58]} Rxd7 {[%emt 0:04:11]} 43. Bc5+ {[%emt 0:00:26]} Ke8 {[%emt 0:00:04]} 44. Rdxd7 {[%emt 0:00:09]} Bxd7 {[%emt 0:00:40]} 45. Rxb3 {[%emt 0:00:07]} a4 {[%emt 0:01:02]} 46. Rb4 {[%emt 0:03:09]} Bc6 {[%emt 0:01:13]} 47. Kf2 {[%emt 0:01:04]} Ra5 {[%emt 0:03:40]} 48. Rb8+ {[%emt 0:02:08]} Kf7 {[%emt 0:01:00]} 49. Bb4 {[%emt 0:04:22]} Ra7 {[%emt 0:03:17]} 50. Rb6 {[%emt 0:02:17]} Bd5 {[%emt 0:00:12]} 51. Ke3 {[%emt 0:02:03]} Rc7 {[%emt 0:02:17]} 52. Rd6 {[%emt 0:01:28]} Bc6 {[%emt 0:06:57]} 53. Ba5 {[%emt 0:01:22]} Rc8 {[%emt 0:00:42]} 54. Rd8 {[%emt 0:00:23]} Rxd8 {[%emt 0:00:21]} 55. Bxd8 {[%emt 0:00:16]} Ke6 {[%emt 0:00:18]} 56. g3 {[%emt 0:02:56]} Kd5 {[%emt 0:03:22]} 57. Bb6 {[%emt 0:02:36]} Bb5 {[%emt 0:01:21]} 58. Kf2 {[%emt 0:02:22]} Kc4 {[%emt 0:01:15]} 59. Ke3 {[%emt 0:00:08]} Kd5 {[%emt 0:00:20]} 60. Kf2 {[%emt 0:00:05]} Bd7 {[%emt 0:00:38]} 61. g4 {[%emt 0:01:31]} Kc4 {[%emt 0:02:14]} 62. Ke3 {[%emt 0:00:45]} Kd5 {[%emt 0:00:04]} 63. Bd4 {[%emt 0:00:37]} Bc8 {[%emt 0:00:48]} 64. g5 {[%emt 0:00:34]} fxg5 {[%emt 0:02:40]} 65. fxg5 {[%emt 0:00:06]} Bxh3 {[%emt 0:00:05]} 66. Bxg7 {[%emt 0:00:07]} Bg2 {[%emt 0:00:17]} 67. Bf6 {[%emt 0:00:16]} Kc4 {[%emt 0:00:21]} 68. Be5 {[%emt 0:00:29]} Kd5 {[%emt 0:00:34]} 69. Bf6 {[%emt 0:00:04]} Bf3 {[%emt 0:00:09]} 70. Bg7 {[%emt 0:00:14]} Kd6 {[%emt 0:00:19]} 71. Kf4 {[%emt 0:00:16]} Ke6 {[%emt 0:00:29]} 72. Bf6 {[%emt 0:00:07]} Bh1 {[%emt 0:00:11]} 73. Bg7 {[%emt 0:00:12]} Kd5 {[%emt 0:00:12]} 74. Ke3 {[%emt 0:00:06]} Kc4 {[%emt 0:00:10]} 75. Bf6 {[%emt 0:00:07]} Kb3 {[%emt 0:00:17]} 76. Bg7 {[%emt 0:00:08]} Kc2 {[%emt 0:00:20]} 77. Bf6 {[%emt 0:00:04]} Kd1 {[%emt 0:00:07]} 78. Bc3 {[%emt 0:00:13]} Kc2 {[%emt 0:00:06]} 79. Bf6 {[%emt 0:00:02]} Kd1 {[%emt 0:00:04]} 80. Bc3 {[%emt 0:00:03]} Kc2 {[%emt 0:00:05]} 81. Bf6 {[%emt 0:00:03]} 1/2-1/2

[Event "Mitropa Online Cup Women 2021"]
[Site "Hybrid"]
[Date "2021.05.04"]
[Round "7.4"]
[White "Karacsonyi, Kata"]
[Black "Thode, Gilda"]
[Result "1-0"]
[ECO "C05"]
[WhiteElo "2138"]
[BlackElo "1987"]
[Annotator "NA"]
[PlyCount "45"]
[EventDate "2021.05.04"]
[EventType "team-tourn"]
[EventCountry "NET"]
[SourceTitle "playchess.com"]
[Source "ChessBase"]
[SourceQuality "1"]
[WhiteTeam "Hungary"]
[BlackTeam "Switzerland"]
[WhiteTeamCountry "HUN"]
[BlackTeamCountry "SUI"]
[TimeControl "40/5400+30:1800+30"]

1. e4 {[%emt 0:00:00]} e6 {[%emt 0:00:23]} 2. d4 {[%emt 0:00:07]} d5 {[%emt 0:00:11]} 3. Nd2 {[%emt 0:00:05]} Nf6 {[%emt 0:00:10]} 4. e5 {[%emt 0:00:07]} Nfd7 {[%emt 0:00:08]} 5. f4 {[%emt 0:00:06]} c5 {[%emt 0:00:21]} 6. c3 {[%emt 0:00:12]} Nc6 {[%emt 0:00:28]} 7. Ndf3 {[%emt 0:00:08]} cxd4 {[%emt 0:06:16]} 8. cxd4 {[%emt 0:00:10]} Be7 {[%emt 0:05:32]} 9. Bd3 {[%emt 0:04:14]} Qb6 {[%emt 0:04:02]} 10. Ne2 {[%emt 0:03:20]} O-O {[%emt 0:00:48]} 11. a3 {[%emt 0:01:38]} a5 {[%emt 0:04:32]} 12. h4 {[%emt 0:09:23]} f6 {[%emt 0:18:34]} 13. Qc2 {[%emt 0:28:17]} f5 {[%emt 0:33:07]} 14. g4 {[%emt 0:02:33]} g6 {[%emt 0:16:45]} 15. h5 {[%emt 0:09:33]} fxg4 {[%emt 0:05:23]} 16. Nh2 {[%emt 0:14:31]} Nxd4 {[%emt 0:00:45]} 17. Nxd4 {[%emt 0:00:25]} Qxd4 {[%emt 0:00:30]} 18. Nxg4 {[%emt 0:01:52]} gxh5 {[%emt 0:00:32]} 19. Be3 {[%emt 0:00:38]} Bb4+ {[%emt 0:00:29]} 20. Ke2 {[%emt 0:00:39]} Qxd3+ {[%emt 0:00:30]} 21. Qxd3 {[%emt 0:00:14]} b6 {[%emt 0:00:14]} 22. Nh6+ {[%emt 0:00:47]} Kh8 {[%emt 0:00:30]} 23. axb4 {[%emt 0:00:18]} 1-0

[Event "Mitropa Online Cup Women 2021"]
[Site "Hybrid"]
[Date "2021.05.04"]
[Round "7.5"]
[White "Movsesian, Julia"]
[Black "Olsarova, Karolina"]
[Result "1/2-1/2"]
[ECO "E18"]
[WhiteElo "2342"]
[BlackElo "2290"]
[Annotator "NA"]
[PlyCount "99"]
[EventDate "2021.05.04"]
[EventType "team-tourn"]
[EventCountry "NET"]
[SourceTitle "playchess.com"]
[Source "ChessBase"]
[SourceQuality "1"]
[WhiteTeam "Slovakia"]
[BlackTeam "Czech Republic"]
[WhiteTeamCountry "SVK"]
[BlackTeamCountry "CZE"]
[TimeControl "40/5400+30:1800+30"]

1. d4 {[%emt 0:00:00]} Nf6 {[%emt 0:00:14]} 2. c4 {[%emt 0:00:11]} e6 {[%emt 0:00:14]} 3. Nf3 {[%emt 0:00:09]} b6 {[%emt 0:02:39]} 4. g3 {[%emt 0:01:29]} Bb7 {[%emt 0:00:20]} 5. Bg2 {[%emt 0:00:40]} d5 {[%emt 0:05:45]} 6. cxd5 {[%emt 0:12:36]} exd5 {[%emt 0:03:35]} 7. O-O {[%emt 0:00:18]} Be7 {[%emt 0:01:30]} 8. Nc3 {[%emt 0:01:00]} O-O {[%emt 0:01:56]} 9. Bf4 {[%emt 0:05:17]} c5 {[%emt 0:08:40]} 10. Rc1 {[%emt 0:10:06]} Nbd7 {[%emt 0:06:06]} 11. dxc5 {[%emt 0:09:47]} bxc5 {[%emt 0:26:52]} 12. Ne5 {[%emt 0:06:53]} Nxe5 {[%emt 0:08:33]} 13. Bxe5 {[%emt 0:00:21]} Ne4 {[%emt 0:00:21]} 14. Nxe4 {[%emt 0:16:19]} dxe4 {[%emt 0:00:09]} 15. Qa4 {[%emt 0:01:03]} Qd5 {[%emt 0:04:27]} 16. Bf4 {[%emt 0:00:41]} Bc6 {[%emt 0:02:57]} 17. Qa5 {[%emt 0:04:39]} Rfd8 {[%emt 0:07:48]} 18. Be3 {[%emt 0:01:27]} c4 {[%emt 0:02:49]} 19. Qc3 {[%emt 0:03:09]} Bf6 {[%emt 0:10:46]} 20. Qxc4 {[%emt 0:01:10]} Qxc4 {[%emt 0:00:27]} 21. Rxc4 {[%emt 0:00:07]} Bd5 {[%emt 0:00:06]} 22. Rc2 {[%emt 0:02:14]} Rac8 {[%emt 0:00:42]} 23. Rd2 {[%emt 0:08:43]} Bxa2 {[%emt 0:01:15]} 24. Rxd8+ {[%emt 0:00:57]} Rxd8 {[%emt 0:00:03]} 25. Bxa7 {[%emt 0:00:52]} Bxb2 {[%emt 0:02:24]} 26. Bxe4 {[%emt 0:00:24]} Be6 {[%emt 0:00:47]} 27. Rb1 {[%emt 0:03:39]} Bf6 {[%emt 0:00:59]} 28. Kg2 {[%emt 0:00:25]} g6 {[%emt 0:00:34]} 29. Rb8 {[%emt 0:01:50]} Rxb8 {[%emt 0:00:20]} 30. Bxb8 {[%emt 0:00:03]} Kf8 {[%emt 0:00:17]} 31. Bc6 {[%emt 0:01:05]} Ke7 {[%emt 0:00:21]} 32. e4 {[%emt 0:00:37]} Bc3 {[%emt 0:01:00]} 33. f3 {[%emt 0:00:21]} h5 {[%emt 0:00:37]} 34. f4 {[%emt 0:02:21]} Bd4 {[%emt 0:00:36]} 35. Bd5 {[%emt 0:01:35]} Bg4 {[%emt 0:00:28]} 36. Bc7 {[%emt 0:00:54]} Be2 {[%emt 0:00:26]} 37. Ba5 {[%emt 0:00:26]} Bc5 {[%emt 0:00:25]} 38. Bc3 {[%emt 0:00:12]} Bg4 {[%emt 0:00:27]} 39. Bg7 {[%emt 0:02:03]} Bb4 {[%emt 0:00:13]} 40. h3 {[%emt 0:00:00]} Bd7 {[%emt 0:00:00]} 41. e5 {[%emt 0:05:31]} Bf5 {[%emt 0:07:37]} 42. Bf6+ {[%emt 0:00:37]} Kf8 {[%emt 0:00:18]} 43. Bf3 {[%emt 0:00:35]} Bd2 {[%emt 0:02:38]} 44. g4 {[%emt 0:04:31]} hxg4 {[%emt 0:00:12]} 45. hxg4 {[%emt 0:00:12]} Be6 {[%emt 0:05:03]} 46. Kg3 {[%emt 0:00:50]} Be1+ {[%emt 0:00:08]} 47. Kh3 {[%emt 0:00:12]} Bd2 {[%emt 0:00:39]} 48. Kg3 {[%emt 0:00:46]} Be1+ {[%emt 0:00:05]} 49. Kh3 {[%emt 0:00:03]} Bd2 {[%emt 0:00:04]} 50. Kg3 {[%emt 0:00:05]} 1/2-1/2

[Event "Mitropa Online Cup Women 2021"]
[Site "Hybrid"]
[Date "2021.05.04"]
[Round "7.5"]
[White "Petrova, Kristyna"]
[Black "Ferkova, Dominika"]
[Result "1/2-1/2"]
[ECO "B10"]
[WhiteElo "2303"]
[BlackElo "2006"]
[Annotator "NA"]
[PlyCount "119"]
[EventDate "2021.05.04"]
[EventType "team-tourn"]
[EventCountry "NET"]
[SourceTitle "playchess.com"]
[Source "ChessBase"]
[SourceQuality "1"]
[WhiteTeam "Czech Republic"]
[BlackTeam "Slovakia"]
[WhiteTeamCountry "CZE"]
[BlackTeamCountry "SVK"]
[TimeControl "40/5400+30:1800+30"]

1. e4 {[%emt 0:00:00]} c6 {[%emt 0:00:07]} 2. c4 {[%emt 0:00:09]} d5 {[%emt 0:00:16]} 3. exd5 {[%emt 0:00:08]} cxd5 {[%emt 0:00:07]} 4. cxd5 {[%emt 0:00:10]} Nf6 {[%emt 0:00:08]} 5. Bb5+ {[%emt 0:00:13]} Nbd7 {[%emt 0:05:25]} 6. Nc3 {[%emt 0:00:35]} g6 {[%emt 0:00:36]} 7. Nf3 {[%emt 0:03:06]} Bg7 {[%emt 0:00:50]} 8. Ne5 {[%emt 0:24:39]} O-O {[%emt 0:02:09]} 9. Nxd7 {[%emt 0:01:21]} Bxd7 {[%emt 0:01:30]} 10. Qb3 {[%emt 0:00:57]} Bxb5 {[%emt 0:15:37]} 11. Qxb5 {[%emt 0:00:10]} Qc7 {[%emt 0:01:21]} 12. d4 {[%emt 0:07:25]} Rfd8 {[%emt 0:08:48]} 13. O-O {[%emt 0:17:05]} Qd7 {[%emt 0:14:04]} 14. d6 {[%emt 0:16:00]} Qxd6 {[%emt 0:09:09]} 15. Qxb7 {[%emt 0:00:27]} Ng4 {[%emt 0:01:19]} 16. g3 {[%emt 0:00:13]} Bxd4 {[%emt 0:00:19]} 17. Bf4 {[%emt 0:07:09]} Qc5 {[%emt 0:06:01]} 18. Qf3 {[%emt 0:03:23]} Qh5 {[%emt 0:06:08]} 19. Qg2 {[%emt 0:05:29]} e5 {[%emt 0:00:33]} 20. Bc1 {[%emt 0:00:15]} Qf5 {[%emt 0:04:47]} 21. Ne4 {[%emt 0:02:28]} Rab8 {[%emt 0:03:08]} 22. h3 {[%emt 0:03:44]} Nf6 {[%emt 0:00:41]} 23. Nxf6+ {[%emt 0:01:27]} Qxf6 {[%emt 0:00:09]} 24. Rb1 {[%emt 0:00:34]} Qa6 {[%emt 0:02:30]} 25. a3 {[%emt 0:02:01]} Rdc8 {[%emt 0:03:48]} 26. Qe4 {[%emt 0:00:44]} Qc4 {[%emt 0:01:54]} 27. Be3 {[%emt 0:01:04]} Rxb2 {[%emt 0:05:29]} 28. Rxb2 {[%emt 0:00:47]} Bxb2 {[%emt 0:00:08]} 29. Qxc4 {[%emt 0:00:21]} Rxc4 {[%emt 0:00:08]} 30. Bxa7 {[%emt 0:01:15]} Bxa3 {[%emt 0:00:08]} 31. Bb8 {[%emt 0:00:23]} f6 {[%emt 0:00:40]} 32. Ba7 {[%emt 0:00:49]} Rc1 {[%emt 0:00:13]} 33. Rxc1 {[%emt 0:00:59]} Bxc1 {[%emt 0:00:24]} 34. Kf1 {[%emt 0:00:36]} Kf7 {[%emt 0:00:40]} 35. Ke2 {[%emt 0:00:05]} Ke6 {[%emt 0:00:52]} 36. Bc5 {[%emt 0:00:26]} f5 {[%emt 0:01:49]} 37. Bb6 {[%emt 0:00:44]} g5 {[%emt 0:00:52]} 38. Bd8 {[%emt 0:00:46]} h6 {[%emt 0:01:10]} 39. Bc7 {[%emt 0:00:24]} h5 {[%emt 0:00:55]} 40. Bd8 {[%emt 0:00:00]} g4 {[%emt 0:00:00]} 41. hxg4 {[%emt 0:01:11]} hxg4 {[%emt 0:00:45]} 42. Bc7 {[%emt 0:01:21]} Kf6 {[%emt 0:11:10]} 43. Bd8+ {[%emt 0:01:37]} Kg6 {[%emt 0:00:06]} 44. Bc7 {[%emt 0:00:42]} Bb2 {[%emt 0:00:34]} 45. Bd6 {[%emt 0:01:15]} Kf7 {[%emt 0:00:52]} 46. Bc7 {[%emt 0:00:15]} Ke7 {[%emt 0:00:05]} 47. Bb6 {[%emt 0:02:10]} Ba3 {[%emt 0:02:05]} 48. Bc7 {[%emt 0:00:15]} Bd6 {[%emt 0:00:20]} 49. Bb6 {[%emt 0:00:07]} Kf6 {[%emt 0:01:05]} 50. Bd8+ {[%emt 0:00:24]} Kg6 {[%emt 0:00:25]} 51. Kf1 {[%emt 0:00:29]} Bf8 {[%emt 0:00:46]} 52. Bc7 {[%emt 0:00:46]} Bg7 {[%emt 0:00:05]} 53. Bd6 {[%emt 0:00:22]} Kh5 {[%emt 0:00:19]} 54. Kg2 {[%emt 0:00:16]} Kg5 {[%emt 0:00:05]} 55. Be7+ {[%emt 0:00:16]} Bf6 {[%emt 0:00:05]} 56. Bd6 {[%emt 0:00:10]} f4 {[%emt 0:00:30]} 57. f3 {[%emt 0:02:23]} gxf3+ {[%emt 0:01:11]} 58. Kxf3 {[%emt 0:00:08]} fxg3 {[%emt 0:00:03]} 59. Kxg3 {[%emt 0:00:13]} Kf5 {[%emt 0:00:02]} 60. Bxe5 {[%emt 0:00:06]} 1/2-1/2

[Event "Mitropa Online Cup Women 2021"]
[Site "Hybrid"]
[Date "2021.05.04"]
[Round "7.5"]
[White "Kanakova, Natalie"]
[Black "Kovarikova, Maria"]
[Result "1-0"]
[ECO "B92"]
[WhiteElo "2179"]
[BlackElo "1899"]
[Annotator "NA"]
[PlyCount "49"]
[EventDate "2021.05.04"]
[EventType "team-tourn"]
[EventCountry "NET"]
[SourceTitle "playchess.com"]
[Source "ChessBase"]
[SourceQuality "1"]
[WhiteTeam "Czech Republic"]
[BlackTeam "Slovakia"]
[WhiteTeamCountry "CZE"]
[BlackTeamCountry "SVK"]
[TimeControl "40/5400+30:1800+30"]

1. e4 {[%emt 0:00:00]} c5 {[%emt 0:00:13]} 2. Nf3 {[%emt 0:00:08]} d6 {[%emt 0:00:08]} 3. d4 {[%emt 0:00:10]} cxd4 {[%emt 0:00:06]} 4. Nxd4 {[%emt 0:00:10]} Nf6 {[%emt 0:00:30]} 5. Nc3 {[%emt 0:00:07]} a6 {[%emt 0:00:20]} 6. Be2 {[%emt 0:00:13]} e5 {[%emt 0:01:21]} 7. Nb3 {[%emt 0:00:08]} Be6 {[%emt 0:00:48]} 8. f4 {[%emt 0:05:11]} Nc6 {[%emt 0:01:35]} 9. O-O {[%emt 0:00:44]} Be7 {[%emt 0:02:05]} 10. Kh1 {[%emt 0:01:29]} Rc8 {[%emt 0:04:28]} 11. f5 {[%emt 0:10:14]} Bd7 {[%emt 0:01:26]} 12. Bg5 {[%emt 0:09:44]} Qc7 {[%emt 0:21:03]} 13. Bxf6 {[%emt 0:02:49]} Bxf6 {[%emt 0:00:41]} 14. Nd5 {[%emt 0:00:19]} Qd8 {[%emt 0:00:28]} 15. c3 {[%emt 0:03:45]} O-O {[%emt 0:02:27]} 16. a4 {[%emt 0:08:06]} Bg5 {[%emt 0:04:34]} 17. a5 {[%emt 0:05:17]} Be8 {[%emt 0:03:06]} 18. f6 {[%emt 0:09:39]} g6 {[%emt 0:07:34]} 19. Bg4 {[%emt 0:02:30]} Rb8 {[%emt 0:03:54]} 20. Qe1 {[%emt 0:02:35]} Bd7 {[%emt 0:09:14]} 21. Bxd7 {[%emt 0:02:27]} Qxd7 {[%emt 0:00:11]} 22. Qg3 {[%emt 0:00:36]} Bh6 {[%emt 0:01:18]} 23. Qh4 {[%emt 0:00:15]} Bf4 {[%emt 0:01:05]} 24. Rxf4 {[%emt 0:00:43]} Nd8 {[%emt 0:01:55]} 25. Qh6 {[%emt 0:00:35]} 1-0

[Event "Mitropa Online Cup Women 2021"]
[Site "Hybrid"]
[Date "2021.05.04"]
[Round "7.5"]
[White "Taragelova, Martina"]
[Black "Richterova, Natasa"]
[Result "1/2-1/2"]
[ECO "D00"]
[WhiteElo "2010"]
[BlackElo "2188"]
[Annotator "NA"]
[PlyCount "96"]
[EventDate "2021.05.04"]
[EventType "team-tourn"]
[EventCountry "NET"]
[SourceTitle "playchess.com"]
[Source "ChessBase"]
[SourceQuality "1"]
[WhiteTeam "Slovakia"]
[BlackTeam "Czech Republic"]
[WhiteTeamCountry "SVK"]
[BlackTeamCountry "CZE"]
[TimeControl "40/5400+30:1800+30"]

1. d4 {[%emt 0:00:00]} d5 {[%emt 0:00:11]} 2. Bf4 {[%emt 0:00:36]} Nf6 {[%emt 0:00:11]} 3. e3 {[%emt 0:00:46]} c5 {[%emt 0:00:26]} 4. c3 {[%emt 0:00:47]} Nc6 {[%emt 0:00:08]} 5. Nd2 {[%emt 0:01:03]} cxd4 {[%emt 0:00:10]} 6. exd4 {[%emt 0:01:23]} Bf5 {[%emt 0:00:48]} 7. Ngf3 {[%emt 0:01:42]} e6 {[%emt 0:01:35]} 8. Qb3 {[%emt 0:04:00]} Qc8 {[%emt 0:00:22]} 9. Ne5 {[%emt 0:06:03]} Nxe5 {[%emt 0:10:58]} 10. Bxe5 {[%emt 0:04:25]} Nd7 {[%emt 0:00:18]} 11. Be2 {[%emt 0:02:34]} f6 {[%emt 0:14:41]} 12. Bg3 {[%emt 0:00:24]} Be7 {[%emt 0:13:35]} 13. c4 {[%emt 0:16:31]} Nb6 {[%emt 0:25:41]} 14. cxd5 {[%emt 0:06:46]} exd5 {[%emt 0:02:31]} 15. O-O {[%emt 0:03:20]} O-O {[%emt 0:02:06]} 16. Rac1 {[%emt 0:15:16]} Qe6 {[%emt 0:00:44]} 17. Bf3 {[%emt 0:04:45]} Rac8 {[%emt 0:01:14]} 18. Bc7 {[%emt 0:03:11]} Nc4 {[%emt 0:05:59]} 19. Nxc4 {[%emt 0:02:26]} dxc4 {[%emt 0:01:23]} 20. Qxb7 {[%emt 0:02:39]} Rf7 {[%emt 0:08:27]} 21. Rfe1 {[%emt 0:13:53]} Qd7 {[%emt 0:00:08]} 22. Bg3 {[%emt 0:00:59]} Bd8 {[%emt 0:02:13]} 23. Qxd7 {[%emt 0:00:26]} Rxd7 {[%emt 0:00:16]} 24. d5 {[%emt 0:01:30]} Ba5 {[%emt 0:05:09]} 25. Red1 {[%emt 0:00:44]} Kf7 {[%emt 0:00:24]} 26. d6 {[%emt 0:02:59]} Be6 {[%emt 0:00:07]} 27. Bd5 {[%emt 0:01:04]} Rb8 {[%emt 0:02:07]} 28. Rc2 {[%emt 0:02:03]} Bxd5 {[%emt 0:01:09]} 29. Rxd5 {[%emt 0:00:09]} c3 {[%emt 0:00:21]} 30. b3 {[%emt 0:00:39]} Bb4 {[%emt 0:00:11]} 31. a3 {[%emt 0:01:03]} Bxa3 {[%emt 0:00:06]} 32. Rxc3 {[%emt 0:00:08]} Bb4 {[%emt 0:01:41]} 33. Rcd3 {[%emt 0:00:29]} Rc8 {[%emt 0:00:31]} 34. h3 {[%emt 0:00:26]} a5 {[%emt 0:00:11]} 35. Bf4 {[%emt 0:01:26]} Rc6 {[%emt 0:00:06]} 36. g3 {[%emt 0:00:48]} g5 {[%emt 0:00:06]} 37. Bd2 {[%emt 0:00:28]} Ke6 {[%emt 0:00:54]} 38. Bxb4 {[%emt 0:00:28]} axb4 {[%emt 0:00:04]} 39. Rb5 {[%emt 0:00:30]} Rc3 {[%emt 0:00:54]} 40. Rxc3 {[%emt 0:00:00]} bxc3 {[%emt 0:00:00]} 41. Rc5 {[%emt 0:00:50]} Rxd6 {[%emt 0:02:45]} 42. Rxc3 {[%emt 0:00:28]} Ke5 {[%emt 0:02:58]} 43. Rc5+ {[%emt 0:08:21]} Ke4 {[%emt 0:02:25]} 44. Kg2 {[%emt 0:01:29]} Rb6 {[%emt 0:01:45]} 45. Rc3 {[%emt 0:00:49]} f5 {[%emt 0:04:53]} 46. Re3+ {[%emt 0:03:47]} Kd4 {[%emt 0:00:38]} 47. Kf3 {[%emt 0:00:50]} Rh6 {[%emt 0:00:33]} 48. Kg2 {[%emt 0:01:36]} Rb6 {[%emt 0:00:04]} 1/2-1/2

[Event "Mitropa Online Cup Women 2021"]
[Site "Hybrid"]
[Date "2021.05.04"]
[Round "8.1"]
[White "Petrova, Kristyna"]
[Black "Klek, Hanna Marie"]
[Result "1/2-1/2"]
[ECO "C56"]
[WhiteElo "2303"]
[BlackElo "2302"]
[Annotator "RC"]
[PlyCount "119"]
[EventDate "2021.05.04"]
[EventType "team-tourn"]
[EventCountry "NET"]
[SourceTitle "playchess.com"]
[Source "ChessBase"]
[SourceQuality "1"]
[WhiteTeam "Czech Republic"]
[BlackTeam "Germany"]
[WhiteTeamCountry "CZE"]
[BlackTeamCountry "GER"]
[TimeControl "40/5400+30:1800+30"]

1. e4 {[%emt 0:00:00]} e5 {[%emt 0:00:08]} 2. Nf3 {[%emt 0:00:06]} Nc6 {[%emt 0:00:03]} 3. Bc4 {[%emt 0:00:06]} Nf6 {[%emt 0:00:30]} 4. d4 {[%emt 0:00:12]} exd4 {[%emt 0:00:19]} 5. e5 {[%emt 0:00:09]} d5 {[%emt 0:00:07]} 6. Bb5 {[%emt 0:00:12]} Ne4 {[%emt 0:00:09]} 7. Nxd4 {[%emt 0:00:17]} Bd7 {[%emt 0:00:34]} 8. Bxc6 {[%emt 0:00:16]} bxc6 {[%emt 0:00:07]} 9. O-O {[%emt 0:00:24]} Bc5 {[%emt 0:00:42]} 10. f3 {[%emt 0:01:04]} Ng5 {[%emt 0:00:21]} 11. f4 {[%emt 0:00:21]} Ne4 {[%emt 0:00:27]} 12. Be3 {[%emt 0:00:18]} O-O {[%emt 0:02:35]} 13. Nd2 {[%emt 0:03:56]} Nxd2 {[%emt 0:01:34]} 14. Qxd2 {[%emt 0:00:10]} Bb6 {[%emt 0:02:52]} 15. Nb3 {[%emt 0:08:55]} f6 {[%emt 0:03:25]} 16. Bd4 {[%emt 0:10:39]} fxe5 {[%emt 0:04:17]} 17. fxe5 {[%emt 0:00:18]} Qh4 {[%emt 0:00:10]} 18. c3 {[%emt 0:04:45]} Qh5 {[%emt 0:10:31]} 19. Rxf8+ {[%emt 0:07:34]} Rxf8 {[%emt 0:00:11]} 20. Re1 {[%emt 0:00:19]} Bf5 {[%emt 0:04:34]} 21. a4 {[%emt 0:09:14]} a5 {[%emt 0:03:40]} 22. Qe3 {[%emt 0:14:50]} Be4 {[%emt 0:10:16]} 23. Bxb6 {[%emt 0:21:36]} cxb6 {[%emt 0:01:09]} 24. Nd2 {[%emt 0:00:55]} Qxe5 {[%emt 0:10:34]} 25. Qxb6 {[%emt 0:00:40]} Qf4 {[%emt 0:06:55]} 26. Nxe4 {[%emt 0:01:49]} dxe4 {[%emt 0:00:05]} 27. Qd4 {[%emt 0:05:03]} h6 {[%emt 0:01:52]} 28. h3 {[%emt 0:00:35]} Re8 {[%emt 0:04:17]} 29. Qc4+ {[%emt 0:01:49]} Kh7 {[%emt 0:02:30]} 30. Qxc6 {[%emt 0:01:22]} Re5 {[%emt 0:01:19]} 31. Qc4 {[%emt 0:01:01]} Qf5 {[%emt 0:04:57]} 32. Qd4 {[%emt 0:00:34]} Kh8 {[%emt 0:05:35]} 33. Qd8+ {[%emt 0:00:23]} Kh7 {[%emt 0:00:07]} 34. Qd4 {[%emt 0:00:05]} Kh8 {[%emt 0:00:11]} 35. b4 {[%emt 0:00:51]} axb4 {[%emt 0:01:30]} 36. cxb4 {[%emt 0:00:21]} Qe6 {[%emt 0:00:25]} 37. Re3 {[%emt 0:01:34]} Rd5 {[%emt 0:04:18]} 38. Qxe4 {[%emt 0:00:28]} Rd1+ {[%emt 0:01:05]} 39. Kh2 {[%emt 0:04:13]} Qd6+ {[%emt 0:00:10]} 40. Qe5 {[%emt 0:00:00]} Qxb4 {[%emt 0:00:00]} 41. Rg3 {[%emt 0:06:58]} Qb7 {[%emt 0:09:29]} 42. Rg6 {[%emt 0:03:05]} Kh7 {[%emt 0:03:11]} 43. Rd6 {[%emt 0:08:57]} Rf1 {[%emt 0:08:06]} 44. Qd5 {[%emt 0:10:34]} Qb1 {[%emt 0:01:57]} 45. Qd3+ {[%emt 0:00:33]} Qxd3 {[%emt 0:00:08]} 46. Rxd3 {[%emt 0:00:06]} Ra1 {[%emt 0:00:09]} 47. Rd4 {[%emt 0:00:05]} Ra3 {[%emt 0:00:25]} 48. Kg1 {[%emt 0:01:43]} Ra2 {[%emt 0:00:24]} 49. Kf1 {[%emt 0:00:10]} h5 {[%emt 0:01:41]} 50. Kg1 {[%emt 0:01:27]} g5 {[%emt 0:03:44]} 51. Rd7+ {[%emt 0:03:22]} Kg6 {[%emt 0:00:08]} 52. Ra7 {[%emt 0:00:03]} g4 {[%emt 0:02:49]} 53. hxg4 {[%emt 0:00:55]} hxg4 {[%emt 0:00:06]} 54. Kh2 {[%emt 0:00:21]} Kg5 {[%emt 0:01:07]} 55. a5 {[%emt 0:00:54]} Kh4 {[%emt 0:01:11]} 56. Rh7+ {[%emt 0:00:06]} Kg5 {[%emt 0:00:07]} 57. Rg7+ {[%emt 0:00:26]} Kh4 {[%emt 0:00:21]} 58. Rh7+ {[%emt 0:00:40]} Kg5 {[%emt 0:00:05]} 59. Rg7+ {[%emt 0:00:02]} Kh4 {[%emt 0:00:05]} 60. Rh7+ {[%emt 0:00:02]} 1/2-1/2